{"text_format":"1","workbook":"xlsx","n_sheets":1,"sheets":["DCI-MUN-RM-IM-LP-001-2023"],"not_rendered":{"charts":0,"images":2,"macros":1,"external_links":2,"defined_names":135,"comments":0,"pivot_tables":0},"unopened":[],"bounds":{"document_bytes":16777216,"sheet_cells":100000,"rows_first":2000,"rows_last":500,"rows_between":2000,"halvings":0,"cell_chars":16384,"cell_head_chars":4096},"cells_cut":0,"cells_raw":0,"read":"whole","date_system":"1900"}

{"sheet":"DCI-MUN-RM-IM-LP-001-2023","index":0,"n_rows":86,"n_cols":7,"rows_kept":86,"cut":false,"hidden":false,"merged":[[8,6,9,6],[11,0,11,6],[14,0,14,6],[0,2,0,5],[83,0,83,4],[84,0,85,4],[1,2,2,5],[4,1,6,1],[7,2,7,5],[8,1,9,1],[8,2,9,5]]}
[null,"MUNICIPIO DE ZAPOPAN, JALISCO","LICITACIÓN PÚBLICA No."]
[null,"DIRECCIÓN DE CONSERVACION DE INMUEBLES","DCI-MUN-RM-IM-LP-001-2023"]
[null,"UNIDAD DE PRESUPUESTOS Y CONTRATACION DE OBRA PUBLICA"]
[null,"DESCRIPCIÓN GENERAL DE LOS TRABAJOS:",null,null,"FECHA DE INICIO:"]
[null,"Mantenimiento de Inmuebles Municipales; (academias, base de \nbomberos, bibliotecas), y obras complementarias, frente 1, municipio de \nZapopan, jalisco",null,null,"FECHA DE TERMINACIÓN:"]
[null,null,null,null,"PLAZO DE EJECUCIÓN:"]
[null,null,null,null,"FECHA DE PRESENTACIÓN:"]
[null,"RAZÓN SOCIAL DEL LICITANTE:","NOMBRE, CARGO Y FIRMA DEL LICITANTE",null,null,null,"DOCUMENTO"]
[null,null,null,null,null,null,"PE1"]
[]
[]
["CATÁLOGO DE CONCEPTOS"]
[]
["CLAVE","DESCRIPCION","UNIDAD","CANTIDAD","PRECIO UNITARIO ($)","PRECIO UNITARIO ($) CON LETRA","IMPORTE ($) M. N."]
[]
["A","DEMOLICIONES E IMPERMEABILIZACIONES",null,null,null,null,{"$f":"SUM(G17:G28)","v":0}]
["DOPI-001","DESMONTAJE Y RETIRO DE IMPERMEABILIZANTE VIEJO DE MEMBRANA Y/O CARPETA EN AZOTEA, POR MEDIOS MANUALES Y/O MECANICOS, HASTA DESPRENDER LECHADA E IMPERMEABILIZACION PLASTICA, A CUALQUIER ALTURA Y/O NIVEL, INCLUYE: ACARREO Y APILE EN BANCO DE OBRA, LIMPIEZA GRUESA, MATERIALES, MANO DE OBRA, EQUIPO Y HERRAMIENTA.","M2",2046,null,null,{"$f":"ROUND((E17*D17),2)","v":0}]
["DOPI-002","REPARACIÓN Y SELLADO DE GRIETAS EN AZOTEA MEDIANTE SELLADOR DE POLIURETANO DE ALTO DESEMPEÑO SIKAFLEX -1A O SIMILAR,  Y BARRA DE RESPALDO DE CELDA CERRADA SIKA ROD O SIMILAR, A CUALQUIER ALTURA Y/O NIVEL, INCLUYE: RETIRO DE SELLADOR VIEJO, REVIVIR JUNTA Y/O GRIETA, CORTE CON DISCO, PREPARACION DE LA SUPERFICIE, MATERIALES, MANO DE OBRA, EQUIPO Y HERRAMIENTA.","M",204.60000000000002,null,null,0]
["DOPI-003","DEMOLICIÓN DE ENLADRILLADO DE AZOTEA Y MORTERO DE CONCRETO SIMPLE CON UN ESPESOR DE HASTA 8 CMS POR MEDIOS MANUALES Y/O MECANICOS, CUALQUIER ALTURA Y/O NIVEL, INCLUYE: MANO DE OBRA, EQUIPO, HERRAMIENTA, ACARREO Y APILE EN LUGAR DONDE INDIQUE LA SUPERVICION.","M2",204.60000000000002,null,null,0]
["DOPI-004","DEMOLICION A MANO DE CONCRETO SIMPLE CON UN ESPESOR HASTA 10 CMS, POR MEDIOS MANUALES, CUALQUIER ALTURA Y/O NIVEL, INCLUYE: MANO DE OBRA, EQUIPO, HERRAMIENTA, ACARREO Y APILE EN LUGAR DONDE INDIQUE LA SUPERVICION.","M3",20.46,null,null,0]
["DOPI-005","SUMINISTRO E INSTALACIÓN DE LADRILLO DE AZOTEA CON MEDIDAS  DE 17 X 17 CM ASENTADO CON MORTERO CEMENTO-ARENA 1:4, INCLUYE:  MATERIALES, ACARREOS, ELEVACIÓN, CORTES, DESPERDICIOS, TRASLAPES, MANO DE OBRA. EQUIPO Y HERRAMIENTA","M2",204.60000000000002,null,null,0]
["DOPI-006","SUMINISTRO E INSTALACIÓN  DE ZAVALETA CON LADRILLO DE AZOTEA 17 X 17 CM,  ASENTADO CON MORTERO CEMENTO-ARENA 1:4, INCLUYE:  MATERIALES, ACARREOS, ELEVACIÓN, CORTES, DESPERDICIOS, TRASLAPES, MANO DE OBRA. EQUIPO Y HERRAMIENTA","M",204.60000000000002,null,null,0]
["DOPI-007","LECHADA SOBRE LADRILLO DE AZOTEA CON SISTEMA A BASE DE POLVO MARMOLINA-CEMENTO BLANCO-SELLADOR EN PROPORCION DE 3:4:5. INCLUYE: PREPARACION DE LA SUPERFICIE, MATERIAL, MANO DE OBRA Y HERRAMIENTA.","M2",2046,null,null,0]
["DOPI-008","MANTENIMIENTO DE BAJANTES PLUVIALES DE 3.00 M APROXIMADAMENTE, INCLUYE: DESASOLVE DE BAJANTE, RECIBIR BAJANTE A LOSA CORRECTAMENTE, SELLADO EN PERIMETRO DE BAJANTE, LIMPIEZA, MANO DE OBRA Y HERRAMIENTA.","PZA",29,null,null,0]
["DOPI-009","IMPERMEABILIZACION SOBRE LADRILLO DE AZOTEA, MCA. ACRITON PLUS, EN 2 CAPAS A RAZON DE 1 CAPA DE ACRITON SIN DILUIR CON RENDIMIENTO DE 0.5 LT/M2 DEJANDO SECAR 24 HR. Y UNA 2a. CAPA EN SENTIDO CRUZADO A LA PRIMERA CON RENDIMIENTO DE 0.5 LT/M2.  INCLUYE: RASPADO Y PREPARACION DE LA SUPERFICIE, CON GARANTIA DE 6 AÑOS.","M2",2046,null,null,0]
["DOPI-010","ACARREO DEL MATERIAL PRODUCTO DE EXCAVACION Y/O DEMOLICION. INCLUYE: BAJADA DEL MATERIAL DESDE TERCER NIVEL ( CIRCULACION VERTICAL ) Y ACARREO HORIZONTAL A 20 MTS. DE DISTANCIA.","M3",102.30000000000001,null,null,0]
["DOPI-011","CARGA MECÁNICA Y ACARREO EN CAMIÓN A TIRADERO OFICIAL FUERA DE LA OBRA , DE MATERIAL PRODUCTO DE EXCAVACIÓN, DEMOLICIÓN Y/O ESCOMBROS, INCLUYE: REGALÍAS AL BANCO DE TIRO, MANO DE OBRA, EQUIPO Y HERRAMIENTA.","M3",102.30000000000001,null,null,0]
["DOPI-012","LIMPIEZA GRUESA DE OBRA DURANTE Y HASTA LA ENTREGA DE LA MISMA RETIRANDO MATERIAL DE ESCOMBRO O BASURA DE TRABAJOS RELACIONADOS. INCLUYE: MANO DE OBRA, HERRAMIENTA,  EQUIPO.","M2",2046,null,null,0]
["B","PINTUTRAS (VINILICA Y ESMALTE)",null,null,null,null,{"$f":"SUM(G30:G37)","v":0}]
["DOPI-013","DEMOLICIÓN POR CUALQUIER MEDIO DE APLANADO EN MURO Y/O BOVEDA HASTA 4.50 M DE ALTURA, EN INTERIOR O EXTERIOR. INCLUYE: ANDAMIOS, HERRAMIENTA, MANO DE OBRA, EQUIPO, ACARREO INTERNO Y APILE PARA SU POSTERIOR  RETIRO.","M2",1267.6000000000001,null,null,0]
["DOPI-014","SUMINISTRO Y APLICACION DE ZARPEO EN MURO Y/O BOVEDAS, CON MORTERO CEMENTO-ARENA DE RIO PROPORCION 1:3, CUALQUIER ALTURA Y/O NIVEL, INCLUYE: ACARREOS, DESPERDICIOS, ANDAMIOS, PLOMEADO, NIVELADO, REGLEADO, RECORTES, MATERIALES, MANO DE OBRA, EQUIPO Y HERRAMIENTA.","M2",1267.6000000000001,null,null,0]
["DOPI-015","SUMINISTRO Y APLICACION DE APLANADO DE 2.50 CM DE ESPESOR EN MURO CON MORTERO CEMENTO-ARENA 1:3, ACABADO PULIDO O APALILLADO, INCLUYE: MATERIALES, ACARREOS, DESPERDICIOS, MANO DE OBRA, ANDAMIOS, PLOMEADO, NIVELADO, REGLEADO, RECORTES, EQUIPO Y HERRAMIENTA.","M2",1267.6000000000001,null,null,0]
["DOPI-016","SUMINISTRO Y APLICACION DE PINTURA VINILICA, EN MUROS Y/O  BOVEDAS DE ACABADO LISO O APALILLADO A DOS MANOS COMO MINIMO, EN EXTERIORES Y/O INTERIORES, A CUALQUIER ALTURA Y/O NIVEL, EN CUALQUIER COLOR, LIMPIANDO Y PREPARANDO LA SUPERFICIE, SELLANDO FISURAS, EN CASO DE MUROS Y/O BOVEDAS PINTADAS YA EXISTENTES, EL RASPADO PARA LA PINTURA DESPRENDIDA NO SERÁ A DETALLE, INCLUYE: PROTEGER CON PLASTICO EL AREA QUE NO SE PINTARA, MANO DE OBRA, EQUIPO, HERRAMIENTA, MATERIALES,   ANDAMIOS, ACARREOS Y HERRAMIENTA.","M2",12676,null,null,0]
["DOPI-017","SUMINISTRO Y APLICACION DE PINTURA ESMALTE CARA ABIERTA EN HERRERIA DE PUERTAS Y VENTANAS DE FACHADA, INCLUYE: RASPADO Y PREPARACION EL AREA, ANDAMIOS, MATERIALES, MANO DE OBRA , EQUIPO, HERRAMIENTA Y LIMPIEZA.","M2",1160.5,null,null,0]
["DOPI-018","SUMINISTRO Y APLICACION DE PINTURA ESMALTE EN PUERTAS, VENTANAS Y CANCELES DE HERRERIA CARA CERRADA, A CUALQUIER ALTURA Y/O CUALQUIER NIVEL, CUALQUIER COLOR, LIMPIANDO, LIJANDO, RASPANDO Y PREPARANDO LA SUPERFICIE, INCLUYE: PROTEGER CON PLASTICO EL AREA QUE NO SE PINTARA, MANO DE OBRA, EQUIPO, HERRAMIENTA, MATERIALES, ANDAMIOS, ACARREOS Y HERRAMIENTA.","M2",1160.5,null,null,0]
["DOPI-019","CARGA MECÁNICA Y ACARREO EN CAMIÓN A TIRADERO OFICIAL FUERA DE LA OBRA , DE MATERIAL PRODUCTO DE EXCAVACIÓN, DEMOLICIÓN Y/O ESCOMBROS, INCLUYE: REGALÍAS AL BANCO DE TIRO, MANO DE OBRA, EQUIPO Y HERRAMIENTA.","M3",63.38000000000001,null,null,0]
["DOPI-020","LIMPIEZA GRUESA DE OBRA DURANTE Y HASTA LA ENTREGA DE LA MISMA RETIRANDO MATERIAL DE ESCOMBRO O BASURA DE TRABAJOS RELACIONADOS. INCLUYE: MANO DE OBRA, HERRAMIENTA,  EQUIPO.","M2",12676,null,null,0]
["C","ROTULOS",null,null,null,null,{"$f":"SUM(G39:G48)","v":0}]
["DOPI-021","SUMINISTRO Y APLICACIÓN DE ROTULACIÓN CON PINTURA VINÍLICA, ESCUDO DE ZAPOPAN Y LEYENDA SEGÚN DEPENDENCIA TAMAÑO 1; DE 0.40 M HASTA 0.80 DE ALTURA. INCLUYE: MATERIALES, ANDAMIOS, MANO DE OBRA Y HERRAMIENTA.","PZA",10,null,null,0]
["DOPI-022","SUMINISTRO Y APLICACIÓN DE ROTULACIÓN CON PINTURA VINÍLICA, ESCUDO DE ZAPOPAN Y LEYENDA SEGÚN DEPENDENCIA TAMAÑO 2; DE 0.80 M HASTA 2.00 DE ALTURA. INCLUYE: MATERIALES, ANDAMIOS, MANO DE OBRA Y HERRAMIENTA.","PZA",10,null,null,0]
["DOPI-023","SUMINISTRO Y APLICACIÓN DE ROTULACIÓN CON PINTURA VINÍLICA, ESCUDO DE ZAPOPAN Y LEYENDA SEGÚN DEPENDENCIA TAMAÑO 3; DE 2.00 M HASTA 4.00 DE ALTURA. INCLUYE: MATERIALES, ANDAMIOS, MANO DE OBRA Y HERRAMIENTA.","PZA",5,null,null,0]
["DOPI-024","SUMINISTRO Y APLICACIÓN DE ROTULACIÓN CON PINTURA VINÍLICA, ESCUDO DE ZAPOPAN Y LEYENDA SEGÚN DEPENDENCIA TAMAÑO 7; 4.00 M HASTA 8.00 DE ALTURA, INCLUYE: MATERIALES, ANDAMIOS, MANO DE OBRA Y HERRAMIENTA.","PZA",3,null,null,0]
["DOPI-025","SUMINISTRO Y APLICACIÓN DE ROTULACIÓN CON PINTURA VINÍLICA, ESCUDO DE ZAPOPAN Y LEYENDA SEGÚN DEPENDENCIA TAMAÑO 6; DE 12.00 M HASTA 25.00 DE ALTURA. INCLUYE: MATERIALES, ANDAMIOS, MANO DE OBRA Y HERRAMIENTA.","PZA",2,null,null,0]
["DOPI-026","SUMINISTRO Y APLICACIÓN DE ROTULACIÓN CON PINTURA VINÍLICA, LEYENDA CON UN APROXIMADO DE 50 LETRAS SEGÚN DEPENDENCIA TAMAÑO 4; DE 1.00 M HASTA 6.00 DE LARGO. INCLUYE: MATERIALES, ANDAMIOS, MANO DE OBRA Y HERRAMIENTA.","PZA",2,null,null,0]
["DOPI-027","SUMINISTRO Y APLICACIÓN DE ROTULACIÓN CON PINTURA VINÍLICA, LEYENDA CON UN APROXIMADO DE 50 LETRAS SEGÚN DEPENDENCIA TAMAÑO 5; DE 6.00 M HASTA 8.00 DE LARGO. INCLUYE: MATERIALES, ANDAMIOS, MANO DE OBRA Y HERRAMIENTA.","PZA",3,null,null,0]
["DOPI-028","SUMINISTRO Y APLICACIÓN DE ROTULACIÓN CON PINTURA VINÍLICA, LOGO CIUDAD DE LOS NIÑOS; TAMAÑO 8; DE 0.30 M HASTA 1.50 DE LARGO. INCLUYE: MATERIALES, ANDAMIOS, MANO DE OBRA Y HERRAMIENTA.","PZA",10,null,null,0]
["DOPI-029","SUMINISTRO Y APLICACIÓN DE ROTULACIÓN CON PINTURA VINÍLICA, LOGO CIUDAD DE LOS NIÑOS; TAMAÑO 9; DE 1.50 M HASTA 3.00 DE LARGO. INCLUYE: MATERIALES, ANDAMIOS, MANO DE OBRA Y HERRAMIENTA.","PZA",6,null,null,0]
["DOPI-030","SUMINISTRO Y APLICACIÓN DE ROTULACIÓN CON PINTURA VINÍLICA, LOGO CIUDAD DE LOS NIÑOS; TAMAÑO 10; DE 3.00 M HASTA 6.00 DE LARGO. INCLUYE: MATERIALES, ANDAMIOS, MANO DE OBRA Y HERRAMIENTA.","PZA",5,null,null,0]
[]
[null,"RESUMEN DE PARTIDAS"]
[]
[{"$f":"A10","v":0},{"$f":"+B5","v":"Mantenimiento de Inmuebles Municipales; (academias, base de \nbomberos, bibliotecas), y obras complementarias, frente 1, municipio de \nZapopan, jalisco"},null,null,null,null,{"$f":"G10","v":0}]
[]
["A",{"$f":"VLOOKUP(A54,$A$16:$G$48,2,)","v":"DEMOLICIONES E IMPERMEABILIZACIONES"},null,null,null,null,{"$f":"VLOOKUP(A54,A16:G48,7,FALSE)","v":0}]
["B",{"$f":"VLOOKUP(A55,$A$16:$G$48,2,)","v":"PINTUTRAS (VINILICA Y ESMALTE)"},null,null,null,null,{"$f":"VLOOKUP(A55,A17:G49,7,FALSE)","v":0}]
["C",{"$f":"VLOOKUP(A56,$A$16:$G$48,2,)","v":"ROTULOS"},null,null,null,null,0]
[]
[]
[]
[]
[]
[]
[]
[]
[]
[]
[]
[]
[]
[]
[]
[]
[]
[]
[]
[]
[]
[]
[]
[]
[]
[]
[]
["IMPORTE TOTAL CON LETRA",null,null,null,null,"SUBTOTAL M. N.",{"$f":"G54+G55+G56","v":0}]
[null,null,null,null,null,"IVA M. N.",{"$f":"G84*0.16","v":0}]
[null,null,null,null,null,"TOTAL M. N.",{"$f":"G84+G85","v":0}]